bitfinex/quotes_ETHUSD_20220119
["timestamp","ask_amount","ask_price","bid_price","bid_amount"]
[1642636263141,0.01268322,3087.4,3086.9,0.01]
[1642636263142,0.01414505,3086.9,3086.5,0.03]
[1642636263341,0.466,3086.8,3086.5,0.03]
[1642636263540,0.466,3086.8,3086.6,0.00284212]
[1642636264142,0.466,3087.2,3086.6,0.00284212]
[1642636265039,0.466,3087.2,3086.7,1.48360379]
[1642636265545,0.466,3087.2,3086.8,0.00170527]
[1642636265748,0.00113685,3087.3,3086.8,2.75042857]
[1642636265952,0.00113685,3087.3,3086.8,0.00170527]
[1642636266149,0.00113685,3087.3,3086.9,0.00113685]
[1642636266353,0.00113685,3087.3,3086.8,0.00170527]
[1642636266995,0.00113685,3087.3,3086.9,20.43906]
[1642636267195,2.75376203,3088.4,3087.1,2.45]
[1642636267394,2.75376203,3088.3,3087.2,2.7487233]
[1642636267595,1.6033,3089.2,3087.2,2.7487233]
[1642636267596,0.00625265,3088.4,3087.2,2.7487233]
[1642636267799,0.00625265,3088.4,3087.3,2.48514011]
[1642636267994,0.00568423,3088.3,3087.4,5.1767733]
[1642636268195,0.00568423,3088.3,3087.8,0.8093]
[1642636268397,1.1373,3089.2,3087.2,0.466]
[1642636268596,0.01270902,3088.9,3087.1,3.9538]
[1642636268900,0.01270902,3088.9,3087.1,6.7025233]
[1642636268901,2.75348915,3088.8,3087.1,6.7025233]
[1642636269197,1.28353792,3088.7,3087.1,3.9538]
[1642636269395,2.75348915,3088.6,3087.2,1.6189]
[1642636269597,2.76087865,3088.6,3087.2,1.6189]
[1642636269797,2.76031023,3088.5,3087.2,1.6189]
[1642636269997,2.75348915,3088.4,3087.2,1.6189]
[1642636270196,2.7597418,3088.4,3087.2,1.6189]
[1642636270399,2.75917338,3088.3,3087.2,1.6189]
[1642636270637,0.00568423,3088.3,3087.7,1.25465349]
[1642636270838,0.00511581,3088.2,3087.7,1.25465349]
[1642636271243,0.00454738,3088.1,3087.7,1.25465349]
[1642636271646,0.00397896,3088.0,3087.7,1.25465349]
[1642636272046,1.1373,3089.2,3087.7,1.25465349]
[1642636272047,0.00341054,3087.9,3087.7,1.25465349]
[1642636272246,0.00341054,3087.9,3087.7,2.87336349]
[1642636272444,2.75330152,3089.1,3087.8,2.45]
[1642636272644,2.75330152,3089.0,3087.8,6.53946081]
[1642636272847,2.75330152,3089.0,3088.5,0.01243854]
[1642636272848,0.00682108,3089.0,3088.5,0.01243854]
[1642636273043,0.00682108,3089.0,3088.5,1.61783854]
[1642636273243,0.00682108,3089.0,3088.6,1.47766028]
[1642636273643,0.00682108,3089.0,3088.7,1.51187621]
[1642636273845,0.00682108,3089.0,3087.7,3.2147233]
[1642636274049,0.00682108,3089.0,3087.6,3.6509]
[1642636274284,0.00682108,3089.0,3087.7,2.7487233]
[1642636274488,0.00682108,3089.0,3087.6,4.1169]
[1642636274685,0.00682108,3089.0,3088.0,0.80927]
[1642636274885,0.00682108,3089.0,3088.5,1.47027822]
[1642636275087,0.00682108,3089.0,3088.6,1.33970719]
[1642636275487,0.00682108,3089.0,3088.6,4.14645038]
[1642636275695,0.00682108,3089.0,3088.8,0.01234716]
[1642636275889,0.5,3089.4,3089.0,2.45]
[1642636276088,0.5,3089.4,3089.1,1.56625437]
[1642636276288,0.00170527,3089.3,3089.1,1.56625437]
[1642636276489,0.00170527,3089.3,3089.2,3.78481266]
[1642636276690,0.5,3089.4,3089.2,4.25081266]
[1642636277092,0.5,3089.4,3089.2,5.05979266]
[1642636277292,0.5,3089.4,3089.2,5.85349266]
[1642636277692,0.0001,3089.4,3089.2,5.85349266]
[1642636277894,0.0001,3089.4,3089.2,3.7097]
[1642636278557,0.0001,3089.4,3089.3,3.25894]
[1642636278960,0.0023737,3089.4,3089.3,5.70894]
[1642636279160,0.0023737,3089.4,3089.3,5.83824]
[1642636279461,0.0023737,3089.4,3089.3,3.38824]
[1642636279659,0.0023737,3089.4,3089.3,4.59858326]
[1642636280157,0.0023737,3089.4,3089.3,5.72759821]
[1642636280959,0.0023737,3089.4,3089.3,8.20689821]
[1642636281160,0.0023737,3089.4,3089.3,11.40689821]
[1642636281364,0.49827368,3091.2,3089.3,29.95644]
[1642636281365,2.75215205,3090.9,3089.3,29.95644]
[1642636281567,5.4919,3091.4,3090.1,0.80877]
[1642636281568,2.751951,3090.8,3090.1,0.80877]
[1642636281788,5.4919,3091.4,3090.1,1.61337]
[1642636281789,0.0073895,3090.7,3090.1,1.61337]
[1642636282191,0.00682108,3090.6,3090.2,0.466]
[1642636282392,0.00682108,3090.6,3090.3,1.28441158]
[1642636282693,0.00625266,3090.5,3090.3,2.46473103]
[1642636282897,0.00625266,3090.5,3089.9,0.1293]
[1642636283093,2.74000052,3091.3,3089.9,0.1293]
[1642636283094,0.00568423,3090.4,3089.9,0.1293]
[1642636283495,0.00511581,3090.3,3089.9,0.1293]
[1642636283693,0.00511581,3090.3,3089.4,0.466]
[1642636283893,1.6179217,3091.0,3089.6,1.28993846]
[1642636283894,0.00454739,3090.2,3089.6,1.28993846]
[1642636284293,0.00397896,3090.1,3089.6,1.28993846]
[1642636284497,0.00397896,3090.1,3089.3,0.1293]
[1642636284701,0.00341054,3090.0,3088.9,0.1293]
[1642636284895,0.80925,3089.9,3088.5,2.86930052]
[1642636285093,0.81209212,3089.9,3089.0,1.43988858]
[1642636285293,0.00227369,3089.8,3089.0,1.43761488]
[1642636285545,0.00227369,3089.8,3089.5,1.42463404]
[1642636285743,0.00170527,3089.7,3089.1,0.00170527]
[1642636286143,0.00113684,3089.6,3089.1,0.00170527]
[1642636286344,0.77300032,3090.7,3089.5,1.33101027]
[1642636286749,0.00511582,3090.5,3089.5,1.33101027]
[1642636286948,0.8090434,3090.3,3089.5,1.33101027]
[1642636287347,0.00341055,3090.2,3089.8,1.27382124]
[1642636287747,0.00284212,3090.1,3089.8,1.27382124]
[1642636287950,0.00284212,3090.1,3089.5,1.33101027]
[1642636288149,0.8114157,3090.0,3089.2,2.45]
[1642636288349,0.8114157,3090.0,3089.1,0.00284211]
[1642636288552,0.00170528,3089.9,3089.3,0.00170527]
[1642636288750,0.00170528,3089.9,3088.8,0.00454738]
[1642636288950,0.81050685,3089.8,3088.8,0.00454738]
[1642636289152,0.8093891,3089.6,3088.8,0.00454738]
[1642636289387,0.8093891,3089.6,3089.0,1.11788525]
[1642636289794,0.8093891,3089.6,3089.1,0.00284211]
[1642636290593,2.42901245,3089.8,3089.1,0.00284211]
[1642636290789,0.00113685,3089.8,3089.5,1.37623675]
[1642636291591,0.00113685,3089.8,3089.1,0.00284211]
[1642636291592,0.81041685,3089.8,3089.1,0.00284211]
[1642636292596,0.81041685,3089.8,3089.1,1.16660231]
[1642636293046,2.42904575,3089.8,3089.2,0.00227369]
[1642636293747,2.42904575,3089.8,3089.1,0.00284211]
[1642636294348,2.42904575,3089.8,3089.2,1.21129123]
[1642636294750,2.42904575,3089.8,3089.3,0.00170527]
[1642636296052,0.00113685,3089.8,3089.3,0.00170527]
[1642636297696,0.00113685,3089.8,3089.3,2.85991158]
[1642636297899,0.00113685,3089.8,3089.3,0.00170527]
[1642636298097,0.00113685,3089.8,3089.7,1.44586918]
[1642636298498,0.00113685,3089.8,3089.3,0.00170527]
[1642636298801,0.00113685,3089.8,3089.2,0.00227369]
[1642636299399,0.00113685,3089.8,3089.4,2.71383853]
[1642636300104,0.00113685,3089.8,3089.4,1.32927267]
[1642636300301,0.00113685,3089.8,3089.2,0.00227369]
[1642636300544,0.00113685,3089.8,3089.4,3.2]
[1642636303654,1.61970355,3089.8,3089.4,3.2]
[1642636303856,4.5739006,3089.7,3089.4,3.2]
[1642636304054,1.61877,3089.7,3089.4,3.2]
[1642636304306,0.8094246,3089.6,3089.4,3.2]
[1642636304499,5.74381827,3089.5,3089.4,3.2]
[1642636304700,2.45,3089.5,3089.4,3.2]
[1642636304900,2.45,3089.5,3089.4,3.20113684]
[1642636305599,4.9,3089.5,3089.4,3.20113684]
[1642636306400,5.06058,3089.5,3089.4,3.20113684]
[1642636309147,5.52658,3089.5,3089.4,3.20113684]
[1642636309545,6.57658,3089.5,3089.4,3.20113684]
[1642636310748,6.57558312,3089.5,3089.4,3.20113684]
[1642636311148,8.19454312,3089.5,3089.4,3.20113684]
[1642636311348,8.49454312,3089.5,3089.4,3.20113684]
[1642636311650,9.49454312,3089.5,3089.4,3.20113684]
[1642636312099,12.2481403,3089.5,3089.4,3.20113684]
[1642636312298,12.3774403,3089.5,3089.4,3.20113684]
[1642636312495,31.1974403,3089.5,3089.4,2.59145719]
[1642636312696,0.809557,3088.7,3087.7,3.7848]
[1642636312899,4.07270808,3088.7,3087.4,0.80955]
[1642636313099,0.809557,3088.7,3087.8,0.00909478]
[1642636313298,0.809557,3088.7,3087.8,1.13652725]
[1642636313702,1.1727,3089.1,3087.9,1.37316828]
[1642636314100,1.1727,3089.1,3088.0,0.00795793]
[1642636314302,3.9637,3089.3,3088.0,0.00795793]
[1642636314501,3.9637,3089.3,3088.0,0.47395793]
[1642636314699,3.9637,3089.3,3088.1,0.5664559]
[1642636314898,3.9637,3089.3,3089.1,1.25270366]
[1642636315100,0.81037685,3089.8,3089.1,1.25270366]
[1642636315299,0.81037685,3089.8,3089.2,0.00113685]
[1642636315553,0.00170527,3089.7,3089.2,0.00113685]
[1642636315956,0.00113684,3089.6,3089.2,0.00113685]
[1642636316353,0.80924,3089.8,3089.2,0.00113685]
[1642636316354,0.00170527,3089.7,3089.2,0.00113685]
[1642636316753,0.00113684,3089.6,3089.2,0.00113685]
[1642636317159,0.81093027,3089.7,3089.2,0.00113685]
[1642636317558,0.00113684,3089.6,3089.2,0.00113685]
[1642636319505,0.00113684,3089.6,3089.5,1.42792995]
[1642636320306,0.00113684,3089.6,3089.2,0.00113685]
[1642636321706,0.00113684,3089.6,3089.4,0.80905]
[1642636321913,0.00113684,3089.6,3089.4,1.80975]
[1642636322316,0.00113684,3089.6,3089.5,0.466]
[1642636322511,0.00113684,3089.6,3089.2,0.00113685]
[1642636323951,0.00113684,3089.6,3088.4,0.03]
[1642636323952,0.00113684,3089.6,3088.5,0.00511581]
[1642636324150,0.8094,3089.4,3088.5,0.00511581]
[1642636324350,2.08575134,3089.6,3088.5,0.00511581]
[1642636324551,3.20933713,3089.5,3088.6,1.38894648]
[1642636324754,0.46713684,3089.6,3088.6,1.38894648]
[1642636324950,0.46713684,3089.6,3088.7,0.00397897]
[1642636325754,0.80933,3089.4,3088.7,0.00397897]
[1642636326354,0.46713684,3089.6,3088.7,0.00397897]
[1642636326830,0.80934,3089.4,3088.8,1.27054171]
[1642636327224,0.80934,3089.4,3088.9,0.00284212]
[1642636327427,0.46713684,3089.6,3088.9,0.00284212]
[1642636328027,1.27641684,3089.6,3088.9,0.00284212]
[1642636328841,1.27641684,3089.6,3088.4,0.83932]
[1642636328842,3.51462236,3089.5,3088.7,0.00397897]
[1642636329030,3.51462236,3089.5,3088.5,0.00511581]
[1642636329230,4.37226043,3089.4,3088.5,0.00511581]
[1642636329431,1.6192359,3089.2,3088.5,0.00511581]
[1642636329730,4.99952728,3089.1,3088.5,0.00511581]
[1642636329931,0.8096481,3088.9,3088.5,0.00511581]
[1642636330130,2.91454662,3088.8,3088.5,0.00511581]
[1642636330329,1.77996,3088.8,3088.5,0.00511581]
[1642636330560,0.466,3088.7,3088.5,0.00511581]
[1642636331156,2.61058,3088.6,3088.5,0.00511581]
[1642636331462,5.52658,3088.6,3088.5,0.00511581]
[1642636332259,2.916,3088.6,3088.5,0.00511581]
[1642636332457,0.1295,3089.0,3088.5,0.00511581]
[1642636332659,1.2071,3089.3,3088.6,1.48634541]
[1642636332858,0.16058,3089.4,3088.6,1.48634541]
[1642636333057,0.16058,3089.4,3088.7,0.00397897]
[1642636333559,0.809329,3089.3,3088.7,0.00397897]
[1642636333759,0.8095,3089.0,3088.7,0.00397897]
[1642636333962,0.8095,3089.0,3087.8,1.6188]
[1642636334161,0.8095,3089.0,3087.9,0.00852635]
[1642636334406,1.6190567,3088.9,3087.9,0.00852635]
[1642636334608,1.6190567,3088.9,3088.0,1.5130103]
[1642636334810,0.80952,3088.8,3088.0,2.8251321]
[1642636335108,0.80952,3088.8,3088.1,0.00738951]
[1642636335310,1.6190188,3088.7,3088.1,0.00738951]
[1642636335807,1.6190188,3088.7,3087.6,0.80953]
[1642636336208,1.6190188,3088.7,3087.7,0.0096632]
[1642636336407,1.6190188,3088.7,3087.9,2.6817971]
[1642636336908,1.6190188,3088.7,3088.0,0.00795793]
[1642636337111,0.8093325,3089.1,3088.0,0.00795793]
[1642636337309,0.00113684,3089.6,3088.7,0.00100741]
[1642636337711,2.75458015,3089.6,3088.8,0.00341054]
[1642636337910,2.75458015,3089.6,3088.9,1.10774798]
[1642636337911,0.00113684,3089.6,3088.9,1.10774798]
[1642636338175,0.8092346,3089.5,3088.9,1.10774798]
[1642636338368,0.8092346,3089.5,3089.0,0.0022737]
[1642636339272,0.00113684,3089.6,3089.0,0.0022737]
[1642636339472,0.00113684,3089.6,3089.4,1.34106559]
[1642636339669,0.00113684,3089.6,3089.5,3.54411157]
[1642636341831,0.00113684,3089.6,3089.5,1.09411157]
[1642636342016,0.00113684,3089.6,3089.5,1.90314157]
[1642636342215,0.0002009,3089.6,3089.5,1.90314157]
[1642636342416,0.0002009,3089.6,3089.5,0.80903]
[1642636342615,0.0002009,3089.6,3089.3,1.61794]
[1642636343018,0.0002009,3089.6,3089.4,0.00093594]
[1642636345322,1.6188727,3089.6,3089.4,0.00093594]
[1642636345559,1.6188727,3089.6,3088.8,0.00434648]
[1642636345965,2.7602727,3089.6,3088.8,0.00434648]
[1642636346166,2.79536542,3089.6,3088.8,0.00434648]
[1642636346365,2.0848418,3089.5,3088.8,0.00434648]
[1642636346564,0.80945,3089.3,3088.8,0.00434648]
[1642636347766,1.10945,3089.3,3088.8,0.00434648]
[1642636347965,0.80945,3089.2,3088.8,0.00434648]
[1642636349831,0.8094,3089.1,3088.8,0.00434648]
[1642636351032,1.6188127,3089.1,3088.8,0.00434648]
[1642636354465,1.9505396,3089.1,3088.8,0.00434648]
[1642636354667,4.36633036,3089.0,3088.8,0.00434648]
[1642636354867,5.95034241,3088.9,3088.8,0.00434648]
[1642636355068,5.366,3088.9,3088.8,0.00434648]
[1642636355566,6.17557,3088.9,3088.8,0.00434648]
[1642636355766,10.0303153,3088.9,3088.8,0.00434648]
[1642636355965,25.75615,3088.9,3088.8,0.00434648]
[1642636356165,29.63954223,3088.9,3088.8,0.00434648]
[1642636356568,29.63954223,3088.9,3088.7,7.41e-06]
[1642636356569,4.9,3088.8,3088.7,7.41e-06]
[1642636356819,10.06344886,3088.8,3088.7,7.41e-06]
[1642636357018,10.06344886,3088.8,3087.2,0.03]
[1642636357019,1.6199189,3088.5,3087.2,0.03]
[1642636357218,18.82,3088.0,3087.2,0.03]
[1642636357420,0.62658,3087.9,3087.3,0.00852635]
[1642636357623,1.47171333,3087.9,3087.3,0.00852635]
[1642636357821,1.4365436,3087.9,3087.3,0.00852635]
[1642636358020,1.2759636,3087.9,3087.3,0.00852635]
[1642636358424,2.0859136,3087.9,3087.3,0.00852635]
[1642636359023,2.8957236,3087.9,3087.3,0.00852635]
[1642636359223,2.92714868,3087.9,3087.3,0.00852635]
[1642636359726,1.61971,3087.8,3087.3,0.00852635]
[1642636359923,0.8099212,3087.7,3087.3,0.00852635]
[1642636360128,1.65725585,3087.7,3087.3,0.00852635]
[1642636360570,1.6198112,3087.7,3087.3,0.00852635]
[1642636360862,2.42983,3087.6,3087.3,0.00852635]
[1642636361063,3.48978,3087.6,3087.3,0.00852635]
[1642636362070,0.8099331,3087.5,3087.3,0.00852635]
[1642636362676,1.27575,3087.8,3087.3,0.00852635]
[1642636362873,0.466,3087.8,3087.3,0.00852635]
[1642636363273,0.466,3087.8,3086.9,0.01080005]
[1642636363472,0.466,3088.2,3087.0,0.80967]
[1642636363873,0.8097,3088.0,3087.5,1.15720273]
[1642636364073,0.8096928,3088.0,3087.1,0.0096632]
[1642636364323,0.16058,3088.1,3087.6,0.00682108]
[1642636364525,0.76058,3088.1,3086.9,0.01080005]
[1642636365430,0.76058,3088.1,3087.0,1.51188758]
[1642636365431,0.80974,3087.8,3087.0,1.51188758]
[1642636365627,0.8097633,3087.6,3087.0,1.51188758]
[1642636365826,0.8097633,3087.6,3087.1,0.0096632]
[1642636366327,0.8097633,3087.6,3087.1,0.00866569]
[1642636367129,0.8096874,3087.8,3087.1,0.00866569]
[1642636368566,0.8096874,3087.8,3087.3,1.26918535]
[1642636368866,0.8096874,3087.8,3087.4,0.00696042]
[1642636369466,0.8096196,3088.1,3087.4,0.00696042]
[1642636369665,1.36549473,3088.3,3087.0,0.01223368]
[1642636369666,0.80962,3088.2,3087.0,0.01223368]
[1642636369864,1.36549473,3088.3,3087.0,0.0214678]
[1642636370064,1.36549473,3088.3,3087.1,0.00866569]
[1642636370267,1.26549473,3088.3,3087.1,0.81828569]
[1642636370469,0.809567,3088.2,3087.1,0.00866569]
[1642636370666,0.809567,3088.2,3087.2,0.00809727]
[1642636370865,1.619167,3088.2,3087.3,1.2893432]
[1642636371068,2.42896,3088.2,3087.1,0.00866569]
[1642636371266,1.61936,3088.2,3087.4,0.00696042]
[1642636371465,1.61936,3088.2,3087.1,0.00866569]
[1642636371928,0.8096492,3088.0,3087.1,0.00866569]
[1642636372128,1.77994,3088.2,3087.1,0.00866569]
[1642636372329,1.61936,3088.2,3087.2,1.24751891]
[1642636372828,1.61936,3088.2,3087.3,0.00752884]
[1642636372829,0.8097,3087.9,3087.3,0.00752884]
[1642636374129,0.8096964,3087.8,3087.3,0.00752884]
[1642636374332,0.80965,3088.1,3087.3,0.00752884]
[1642636374531,1.61938,3088.1,3087.3,0.00752884]
[1642636374736,1.6195236,3087.9,3087.3,0.00752884]
[1642636374931,1.6195236,3087.9,3087.1,0.00866569]
[1642636375332,0.809694,3087.8,3087.1,0.00866569]
[1642636375588,1.6195236,3087.9,3086.9,1.48164098]
[1642636375876,0.00397896,3087.8,3086.9,1.48164098]
[1642636376682,0.8097535,3087.6,3086.9,1.48164098]
[1642636376886,0.8097535,3087.6,3086.6,5.56969937]
[1642636376887,0.01031832,3087.5,3086.6,5.56969937]
[1642636377081,1.62199939,3087.5,3086.6,5.56969937]
[1642636377281,1.62199939,3087.5,3086.7,0.0022737]
[1642636377282,0.00170527,3087.4,3086.7,0.0022737]
[1642636377683,0.00113685,3087.3,3086.7,0.0022737]
[1642636378087,0.8099,3087.2,3086.7,0.0022737]
[1642636378583,2.4297343,3087.2,3086.7,0.0022737]
[1642636378782,0.00170527,3087.4,3086.7,0.0022737]
[1642636379186,0.00113685,3087.3,3086.7,0.0022737]
[1642636381623,0.00113685,3087.3,3086.7,0.8120037]
[1642636381823,0.00113685,3087.3,3086.6,8.35748848]
[1642636382023,0.00284212,3087.2,3086.6,6.80133861]
[1642636382225,0.00284212,3087.2,3086.6,5.56969937]
[1642636382525,0.0022737,3087.1,3086.9,0.00253066]
[1642636382927,0.00170527,3087.0,3086.9,0.00253066]
[1642636383205,0.16228527,3087.0,3086.9,0.00253066]
[1642636383590,0.00170527,3087.0,3086.9,0.00253066]
[1642636383791,2.45170527,3087.0,3086.9,0.00253066]
[1642636384092,3.16173527,3087.0,3086.9,0.00253066]
[1642636384491,3.46173527,3087.0,3086.9,0.00253066]
[1642636384692,3.16173527,3087.0,3086.9,0.00253066]
[1642636385293,1.2758713,3087.1,3086.9,0.00253066]
[1642636387330,2.0858513,3087.1,3087.0,0.00222181]
[1642636387532,1.27598,3087.1,3087.0,0.00222181]
[1642636387732,0.466,3087.1,3087.0,0.00222181]
[1642636389532,4.15878305,3087.1,3087.0,0.00222181]
[1642636389734,0.8101687,3087.0,3086.8,0.00474497]
[1642636389936,5.78699443,3086.9,3086.8,0.00244497]
[1642636390137,5.78699443,3086.9,3086.3,0.017]
[1642636390138,2.45,3086.8,3086.3,0.017]
[1642636390338,4.33977374,3086.7,3086.3,0.017]
[1642636390584,4.33977374,3086.7,3086.0,0.01]
[1642636390585,0.01212854,3086.4,3086.0,0.01]
[1642636390893,0.466,3086.3,3086.2,0.00454738]
[1642636391091,0.466,3086.3,3085.6,1.8439672]
[1642636391092,4.9,3086.2,3085.6,1.8439672]
[1642636391387,4.9,3086.2,3085.7,0.00284212]
[1642636391388,20.25698,3086.1,3085.7,0.00284212]
[1642636391585,20.25698,3086.1,3085.6,6.72e-05]
[1642636391586,0.01249389,3085.8,3085.6,6.72e-05]
[1642636391785,2.966,3085.7,3085.6,6.72e-05]
[1642636392191,3.77635,3085.7,3085.6,6.72e-05]
[1642636392591,6.27635,3085.7,3085.6,6.72e-05]
[1642636392789,6.27635,3085.7,3085.6,3.2000672]
[1642636392790,3.77635,3085.7,3085.6,3.2000672]
[1642636393194,3.93693,3085.7,3085.6,3.2000672]
[1642636393697,0.81062,3085.5,3084.5,0.007]
[1642636393895,7.2529863,3085.6,3084.5,0.007]
[1642636393896,0.466,3085.4,3084.5,0.007]
[1642636394094,4.0104963,3085.6,3084.5,0.007]
[1642636394095,0.466,3085.3,3085.1,0.00341054]
[1642636394348,0.466,3085.2,3085.1,0.00341054]
[1642636395541,1.2217,3085.7,3085.1,0.00341054]
[1642636395944,1.2217,3085.7,3085.4,1.36122749]
[1642636396140,1.62220997,3086.0,3085.4,1.36122749]
[1642636396141,0.81193527,3086.0,3085.4,1.36122749]
[1642636396341,0.00170527,3086.0,3085.5,0.00113685]
[1642636396545,3.24133,3087.1,3085.5,0.94243685]
[1642636396546,0.00113685,3085.9,3085.5,0.94243685]
[1642636396943,2.87852688,3087.0,3085.5,0.94243685]
[1642636396944,0.466,3086.6,3085.5,0.94243685]
[1642636397247,0.466,3086.6,3086.4,1.24558194]
[1642636397443,0.466,3086.6,3085.6,0.0036436]
[1642636397843,1.2761171,3086.6,3085.6,0.0036436]
[1642636398087,0.81025,3086.4,3085.6,0.0036436]
[1642636398287,0.466,3086.3,3085.6,0.0036436]
[1642636398491,0.81029,3086.2,3085.6,0.0036436]
[1642636398688,0.466,3086.1,3085.6,0.0036436]
[1642636398990,0.01241379,3085.8,3085.6,0.0019436]
[1642636399189,2.966,3085.7,3085.6,0.0019436]
[1642636399589,5.466,3085.7,3085.6,0.0019436]
[1642636399991,2.97658,3085.7,3085.6,0.0019436]
[1642636400289,0.316,3085.7,3085.6,0.0019436]
[1642636401597,2.816,3085.7,3085.6,0.0019436]
[1642636402050,2.816,3085.7,3085.6,3.2019436]
[1642636402249,0.316,3085.7,3085.6,3.2019436]
[1642636402452,0.316,3085.7,3085.6,3.20388243]
[1642636402860,5.0,3085.6,3085.5,0.00113685]
[1642636403054,5.466,3085.6,3085.5,0.00113685]
[1642636403454,9.62438224,3085.6,3085.5,0.00113685]
[1642636403655,9.63688504,3085.6,3085.5,0.00113685]
[1642636403858,2.5,3085.5,3085.0,0.10944295]
[1642636404054,19.63065,3085.3,3085.0,0.10944295]
[1642636404253,19.63065,3085.3,3085.1,0.00227369]
[1642636404254,21.786,3085.2,3085.1,0.00227369]
[1642636404654,22.59665,3085.2,3085.1,0.00227369]
[1642636404859,22.54665,3085.2,3085.1,0.00227369]
[1642636405053,22.84665,3085.2,3085.1,0.00227369]
[1642636405255,4.02665,3085.2,3085.1,0.00227369]
[1642636405689,0.416,3085.2,3085.1,0.00227369]
[1642636406088,0.716,3085.2,3085.1,0.00227369]
[1642636406495,3.216,3085.2,3085.1,0.00227369]
[1642636407693,3.37658,3085.2,3085.1,0.00227369]
[1642636407893,3.07658,3085.2,3085.1,0.00227369]
[1642636408294,21.89658,3085.2,3085.1,0.00227369]
[1642636408495,21.89658,3085.2,3083.3,0.03]
[1642636408496,0.8106322,3084.9,3084.0,0.017]
[1642636408697,0.01256974,3084.2,3083.3,0.03]
[1642636408896,0.01256974,3084.2,3081.8,2.08787]
[1642636408897,5.60566187,3084.1,3082.1,3.83375381]
[1642636409097,5.60566187,3084.1,3082.1,3.73375381]
[1642636409098,0.00589201,3083.9,3082.1,3.73375381]
[1642636409355,0.466,3083.8,3082.2,0.01648428]
[1642636409558,1.6842,3084.0,3082.2,0.01648428]
[1642636409762,8.55355494,3084.6,3082.2,0.01648428]
[1642636409763,8.9725,3084.6,3082.3,1.29156587]
[1642636409956,0.81073,3084.7,3082.8,0.01249722]
[1642636409957,1.1691,3084.7,3082.8,0.01249722]
[1642636410157,0.01259392,3085.0,3082.9,0.466]
[1642636410357,0.01259392,3085.0,3084.6,1.28191333]
[1642636410659,0.1297,3085.8,3084.7,0.00227369]
[1642636410859,4.3655,3085.8,3084.8,1.50850446]
[1642636411056,1.6208703,3085.6,3084.8,1.50850446]
[1642636411258,0.00341054,3085.7,3084.9,0.00113685]
[1642636411455,1.22263182,3085.9,3084.9,0.81135685]
[1642636411456,0.00227369,3085.5,3084.9,0.81135685]
[1642636411661,1.2097,3085.9,3084.9,0.81135685]
[1642636411662,0.00284212,3085.6,3084.9,0.81135685]
[1642636411857,4.1316,3086.2,3084.9,0.81135685]
[1642636411858,0.00170527,3085.4,3084.9,0.81135685]
[1642636412062,0.00227369,3085.5,3084.9,0.81135685]
[1642636412261,0.00113685,3085.3,3085.0,3.8507]
[1642636412461,0.13819997,3086.4,3085.0,3.8507]
[1642636412462,0.00170527,3085.4,3085.0,3.8507]
[1642636412663,0.00682108,3086.3,3085.0,3.8507]
[1642636412862,0.00113685,3085.3,3085.0,3.8507]
[1642636413110,0.00625266,3086.2,3085.0,3.8507]
[1642636413294,0.81034,3086.2,3085.0,3.8007]
[1642636413495,1.62636913,3086.1,3085.0,3.8007]
[1642636413695,0.81038,3085.9,3085.0,3.8007]
[1642636414095,0.00397896,3085.8,3085.0,3.8007]
[1642636414301,1.11442896,3085.8,3085.0,3.8007]
[1642636414494,0.810442,3085.6,3084.9,0.00113685]
[1642636414898,23.03010311,3085.8,3084.9,0.00113685]
[1642636414899,5.84216085,3085.5,3084.9,0.00113685]
[1642636415095,0.466,3085.4,3084.9,0.00113685]
[1642636415297,0.46770527,3085.4,3084.5,0.00341054]
[1642636415495,0.00113685,3085.3,3084.5,0.00341054]
[1642636415696,0.466,3085.2,3084.5,0.00341054]
[1642636415896,0.416,3085.2,3084.5,0.00341054]
[1642636416197,0.416,3085.2,3084.8,1.10392033]
[1642636416596,0.416,3085.2,3084.9,0.00113685]
[1642636416840,0.00113685,3085.3,3084.9,0.00113685]
[1642636417039,1.10303685,3085.7,3084.9,0.00113685]
[1642636417240,1.10303685,3085.7,3084.9,0.0022737]
[1642636417439,0.00170527,3085.6,3084.6,0.81428897]
[1642636417839,0.00113684,3085.5,3084.7,0.00341054]
[1642636418240,0.00113684,3085.5,3084.8,1.19241657]
[1642636418645,0.00113684,3085.5,3084.9,0.0022737]
[1642636420627,0.00113684,3085.5,3084.9,0.8125137]
[1642636420817,0.1295,3086.2,3085.2,0.04031296]
[1642636421012,0.1295,3086.2,3085.3,0.03810219]
[1642636421212,0.00284212,3086.0,3085.4,1.2758899]
[1642636421512,0.1295,3086.2,3085.5,1.28543757]
[1642636421513,0.0022737,3085.9,3085.5,1.28543757]
[1642636421717,0.0022737,3085.9,3085.6,0.466]
[1642636421915,0.00170527,3085.8,3085.7,0.82097586]
[1642636422216,0.00170527,3085.8,3085.7,6.27591]
[1642636422814,0.01252388,3087.7,3086.0,0.08620377]
[1642636422815,0.1296,3087.7,3086.0,0.08620377]
[1642636423022,0.16058,3088.1,3086.4,0.02350781]
[1642636423023,1.34878,3088.1,3086.4,0.02350781]
[1642636423221,2.75540215,3088.0,3086.5,0.466]
[1642636423421,2.75540215,3088.0,3087.0,1.47566232]
[1642636423622,2.75540215,3088.0,3086.8,1.30417836]
[1642636423623,0.0119369,3087.9,3086.8,1.30417836]
[1642636423823,0.8098391,3087.7,3086.5,1.61946]
[1642636424024,2.75540215,3087.6,3086.5,1.61946]
[1642636424222,2.76563378,3087.6,3086.5,1.61946]
[1642636424453,2.76506535,3087.5,3086.3,0.93938]
[1642636424651,2.75540215,3087.4,3086.5,1.41901904]
[1642636424855,2.76449693,3087.4,3086.5,1.41901904]
[1642636425052,2.76392851,3087.3,3086.5,1.41901904]
[1642636425254,2.75540215,3087.2,3086.4,1.51259649]
[1642636425460,2.76336008,3087.2,3086.4,1.51259649]
[1642636425654,0.00738951,3087.1,3086.4,1.51259649]
[1642636426155,0.00682108,3087.0,3086.4,1.51259649]
[1642636426555,0.00625266,3086.9,3086.4,1.51259649]
[1642636426757,0.00625266,3086.9,3086.6,1.51501807]
[1642636426956,0.00568424,3086.8,3086.6,1.51501807]
[1642636427361,0.00511581,3086.7,3086.6,1.51501807]
[1642636427556,3.0947745,3087.7,3086.4,1.51259649]
[1642636427756,2.75540273,3087.6,3086.4,3.13213649]
[1642636427957,0.00397897,3087.4,3086.5,0.00113684]
[1642636428396,0.00341055,3087.3,3086.5,0.00113684]
[1642636428696,0.00284212,3087.2,3086.5,0.81095684]
[1642636429095,0.0022737,3087.1,3086.5,0.81095684]
[1642636429496,0.00170527,3087.0,3086.5,0.81095684]
[1642636429899,2.75532875,3087.6,3086.6,1.24876278]